fUSD/lending_fUSD_20251013
["ID","MTS","AMOUNT","RATE_DAILY","PERIOD"]
[391117264,1760359497129,-500.0,0.00029531,120]
[391117265,1760359497184,-500.0,0.00029531,120]
[391117266,1760359497239,-500.0,0.00029531,120]
[391117267,1760359497292,-500.0,0.00029531,120]
[391117268,1760359497350,-501.06,0.00029531,120]
[391117269,1760359497406,-368.38,0.00029531,120]
[391117270,1760359497462,-500.0,0.00029531,120]
[391117271,1760359497530,-500.0,0.00029531,120]
[391117272,1760359497598,-500.0,0.00029531,120]
[391117273,1760359497654,-500.0,0.00029531,120]
[391117274,1760359497712,-500.0,0.00029531,120]
[391117275,1760359497777,-500.0,0.00029531,120]
[391117276,1760359497842,-500.0,0.00029531,120]
[391117277,1760359497911,-500.0,0.00029531,120]
[391117278,1760359497976,-514.62,0.00029531,120]
[391117279,1760359498032,-483.23,0.00029531,120]
[391117280,1760359498091,-500.0,0.00029531,120]
[391117281,1760359498151,-500.0,0.00029531,120]
[391117282,1760359498221,-500.0,0.00029531,120]
[391117283,1760359498275,-500.0,0.00029531,120]
[391117284,1760359498340,-500.0,0.00029531,120]
[391117285,1760359498393,-356.67,0.00029531,120]
[391117286,1760359498456,-500.0,0.00029531,120]
[391117287,1760359498523,-500.0,0.00029531,120]
[391117288,1760359498589,-500.0,0.00029531,120]
[391117289,1760359498643,-500.0,0.00029531,120]
[391117290,1760359498705,-500.0,0.00029531,120]
[391117291,1760359498769,-500.0,0.00029531,120]
[391117292,1760359498836,-607.9,0.00029531,120]
[391117293,1760359498899,-500.0,0.00029531,120]
[391117294,1760359498969,-500.0,0.00029531,120]
[391117295,1760359499039,-500.0,0.00029531,120]
[391117296,1760359499112,-336.87,0.00029531,120]
[391117297,1760359499179,-500.0,0.00029531,120]
[391117298,1760359499238,-500.0,0.00029531,120]
[391117299,1760359499302,-500.0,0.00029531,120]
[391117300,1760359499366,-500.0,0.00029531,120]
[391117301,1760359499427,-500.0,0.00029531,120]
[391117302,1760359499484,-500.0,0.00029531,120]
[391117303,1760359499539,-500.0,0.00029531,120]
[391117304,1760359499611,-606.38,0.00029531,120]
[391117305,1760359499669,-500.0,0.00029531,120]
[391117306,1760359499728,-500.0,0.00029531,120]
[391117307,1760359499791,-500.0,0.00029531,120]
[391117308,1760359499841,-500.0,0.00029531,120]
[391117309,1760359499893,-570.36,0.00029531,120]
[391117310,1760359499955,-500.0,0.00029531,120]
[391117311,1760359500022,-500.0,0.00029531,120]
[391117312,1760359500075,-500.0,0.00029531,120]
[391117313,1760359500134,-485.31,0.00029531,120]
[391117314,1760359500190,-638.54,0.00029531,120]
[391117315,1760359500255,-500.0,0.00029531,120]
[391117316,1760359500310,-500.0,0.00029531,120]
[391117317,1760359500373,-500.0,0.00029531,120]
[391117318,1760359500433,-500.0,0.00029531,120]
[391117319,1760359500486,-500.0,0.00029531,120]
[391117320,1760359500538,-500.0,0.00029531,120]
[391117321,1760359500592,-500.0,0.00029531,120]
[391117322,1760359500644,-500.0,0.00029531,120]
[391117323,1760359500697,-500.0,0.00029531,120]
[391117324,1760359500750,-172.33,0.00029531,120]
[391117325,1760359500805,-500.0,0.00029531,120]
[391117326,1760359500859,-500.0,0.00029531,120]
[391117327,1760359500912,-608.63,0.00029531,120]
[391117328,1760359500966,-500.0,0.00029531,120]
[391117329,1760359501019,-500.0,0.00029531,120]
[391117330,1760359501071,-500.0,0.00029531,120]
[391117331,1760359501124,-479.83,0.00029531,120]
[391117332,1760359501178,-500.0,0.00029531,120]
[391117333,1760359501228,-500.0,0.00029531,120]
[391117334,1760359501278,-500.0,0.00029531,120]
[391117335,1760359501329,-500.0,0.00029531,120]
[391117336,1760359501385,-500.0,0.00029531,120]
[391117337,1760359501436,-500.0,0.00029531,120]
[391117338,1760359501486,-500.0,0.00029531,120]
[391117339,1760359501539,-500.0,0.00029531,120]
[391117340,1760359501595,-500.0,0.00029531,120]
[391117341,1760359501649,-400.0,0.00029531,120]
[391117342,1760359501704,-500.0,0.00029531,120]
[391117343,1760359501760,-313.72,0.00029531,120]
[391117344,1760359501826,-500.0,0.00029531,120]
[391117345,1760359501882,-500.0,0.00029531,120]
[391117346,1760359501936,-500.0,0.00029531,120]
[391117347,1760359501991,-500.0,0.00029531,120]
[391117348,1760359502047,-500.0,0.00029531,120]
[391117349,1760359502101,-500.0,0.00029531,120]
[391117350,1760359502154,-500.0,0.00029531,120]
[391117351,1760359502209,-500.0,0.00029531,120]
[391117352,1760359502265,-500.0,0.00029531,120]
[391117353,1760359502321,-500.0,0.00029531,120]
[391117354,1760359502377,-500.0,0.00029531,120]
[391117355,1760359502430,-500.0,0.00029531,120]
[391117356,1760359502485,-500.0,0.00029531,120]
[391117357,1760359502538,-500.0,0.00029531,120]
[391117358,1760359502844,-500.0,0.00029531,120]
[391117359,1760359502898,-500.0,0.00029531,120]
[391117360,1760359502950,-406.13,0.00029531,120]
[391117361,1760359503004,-500.0,0.00029531,120]
[391117362,1760359503068,-425.87,0.00029531,120]
[391117363,1760359503133,-500.0,0.00029531,120]
[391117364,1760359503193,-286.25,0.00029531,120]
[391117365,1760359503253,-500.0,0.00029531,120]
[391117366,1760359503315,-500.0,0.00029531,120]
[391117367,1760359503380,-500.0,0.00029531,120]
[391117368,1760359503442,-500.0,0.00029531,120]
[391117369,1760359503503,-476.9,0.00029531,120]
[391117370,1760359503563,-240.47,0.00029531,120]
[391117371,1760359503624,-500.0,0.00029531,120]
[391117372,1760359503685,-500.0,0.00029531,120]
[391117373,1760359503745,-636.43921205,0.00029531,120]
[391117374,1760359503809,-500.0,0.00029531,120]
[391117375,1760359503872,-500.0,0.00029531,120]
[391117376,1760359503935,-500.0,0.00029531,120]
[391117377,1760359503999,-500.0,0.00029531,120]
[391117378,1760359504064,-500.0,0.00029531,120]
[391117379,1760359504130,-533.69,0.00029531,120]
[391117380,1760359504196,-500.0,0.00029531,120]
[391117381,1760359504263,-189.74,0.00029531,120]
[391117382,1760359504336,-229.47,0.00029531,120]
[391117383,1760359504401,-500.0,0.00029531,120]
[391117384,1760359504466,-500.0,0.00029531,120]
[391117385,1760359504530,-500.0,0.00029531,120]
[391117386,1760359504596,-500.0,0.00029531,120]
[391117387,1760359504658,-500.0,0.00029531,120]
[391117388,1760359504723,-500.0,0.00029531,120]
[391117389,1760359504788,-500.0,0.00029531,120]
[391117390,1760359504852,-500.0,0.00029531,120]
[391117391,1760359504916,-500.0,0.00029531,120]
[391117392,1760359504979,-500.0,0.00029531,120]
[391117393,1760359505041,-500.0,0.00029531,120]
[391117394,1760359505107,-500.0,0.00029531,120]
[391117395,1760359505171,-500.0,0.00029531,120]
[391117396,1760359505234,-500.0,0.00029531,120]
[391117397,1760359505303,-500.0,0.00029531,120]
[391117398,1760359505368,-500.0,0.00029531,120]
[391117399,1760359505432,-348.79,0.00029531,120]
[391117400,1760359505494,-500.0,0.00029531,120]
[391117401,1760359505556,-500.0,0.00029531,120]
[391117402,1760359505621,-500.0,0.00029531,120]
[391117403,1760359505680,-500.0,0.00029531,120]
[391117404,1760359505744,-162.3,0.00029531,120]
[391117405,1760359505814,-500.0,0.00029531,120]
[391117406,1760359505879,-611.51,0.00029531,120]
[391117407,1760359505943,-500.0,0.00029531,120]
[391117408,1760359506006,-500.0,0.00029531,120]
[391117409,1760359506070,-1446.31,0.00029531,120]
[391117410,1760359506133,-500.0,0.00029531,120]
[391117411,1760359506194,-500.0,0.00029531,120]
[391117412,1760359506255,-328.24,0.00029531,120]
[391117413,1760359506318,-1446.31,0.00029531,120]
[391117414,1760359506380,-500.0,0.00029531,120]
[391117415,1760359506439,-1446.31,0.00029531,120]
[391117416,1760359506497,-500.0,0.00029531,120]
[391117417,1760359506556,-1446.31,0.00029531,120]
[391117418,1760359506612,-500.0,0.00029531,120]
[391117419,1760359506671,-500.0,0.00029531,120]
[391117420,1760359506731,-1446.31,0.00029531,120]
[391117421,1760359506794,-500.0,0.00029531,120]
[391117422,1760359506853,-500.0,0.00029531,120]
[391117423,1760359506915,-1446.31,0.00029531,120]
[391117424,1760359506975,-500.0,0.00029531,120]
[391117425,1760359507038,-500.0,0.00029531,120]
[391117426,1760359507105,-1446.31,0.00029531,120]
[391117427,1760359507172,-1446.31,0.00029531,120]
[391117428,1760359507233,-500.0,0.00029531,120]
[391117429,1760359507299,-1446.31,0.00029531,120]
[391117430,1760359507362,-612.01,0.00029531,120]
[391117431,1760359507426,-1446.31,0.00029531,120]
[391117432,1760359507485,-500.0,0.00029531,120]
[391117433,1760359507544,-1446.31,0.00029531,120]
[391117434,1760359507602,-500.0,0.00029531,120]
[391117435,1760359507663,-1446.31,0.00029531,120]
[391117436,1760359507724,-1446.31,0.00029531,120]
[391117437,1760359507781,-641.94275915,0.00029531,120]
[391117438,1760359507841,-1446.31,0.00029531,120]
[391117439,1760359507907,-1446.31,0.00029531,120]
[391117440,1760359507966,-1446.31,0.00029531,120]
[391117441,1760359508029,-1446.31,0.00029531,120]
[391117442,1760359508097,-1446.31,0.00029531,120]
[391117443,1760359508159,-1446.31,0.00029531,120]
[391117444,1760359508221,-500.0,0.00029531,120]
[391117445,1760359508284,-1446.31,0.00029531,120]
[391117446,1760359508348,-500.0,0.00029531,120]
[391117447,1760359508411,-1446.31,0.00029531,120]
[391117448,1760359508472,-1446.31,0.00029531,120]
[391117449,1760359508531,-500.0,0.00029531,120]
[391117450,1760359508591,-1446.31,0.00029531,120]
[391117451,1760359508652,-520.14,0.00029531,120]
[391117452,1760359508711,-535.13,0.00029531,120]
[391117453,1760359509044,-1446.39,0.00029531,120]
[391117454,1760359509109,-500.0,0.00029531,120]
[391117455,1760359509172,-500.0,0.00029531,120]
[391117456,1760359509233,-500.0,0.00029531,120]
[391117457,1760359509296,-500.0,0.00029531,120]
[391117458,1760359509353,-500.0,0.00029531,120]
[391117459,1760359509413,-500.0,0.00029531,120]
[391117460,1760359509470,-500.0,0.00029531,120]
[391117461,1760359509526,-500.0,0.00029531,120]
[391117462,1760359509582,-500.0,0.00029531,120]
[391117463,1760359509637,-471.36,0.00029531,120]
[391117464,1760359509691,-455.17,0.00029531,120]
[391117465,1760359509742,-500.0,0.00029531,120]
[391117466,1760359509794,-500.0,0.00029531,120]
[391117467,1760359509845,-500.0,0.00029531,120]
[391117468,1760359509894,-422.44,0.00029531,120]
[391117469,1760359509947,-500.0,0.00029531,120]
[391117470,1760359510001,-500.0,0.00029531,120]
[391117471,1760359510056,-500.0,0.00029531,120]
[391117472,1760359510112,-500.0,0.00029531,120]
[391117473,1760359510173,-604.11,0.00029531,120]
[391117474,1760359510232,-500.0,0.00029531,120]
[391117475,1760359510291,-500.0,0.00029531,120]
[391117476,1760359510350,-500.0,0.00029531,120]
[391117477,1760359510408,-604.11,0.00029531,120]
[391117478,1760359510472,-500.0,0.00029531,120]
[391117479,1760359510529,-500.0,0.00029531,120]
[391117480,1760359510585,-604.11,0.00029531,120]
[391117481,1760359510643,-500.0,0.00029531,120]
[391117482,1760359510700,-500.0,0.00029531,120]
[391117483,1760359510758,-500.0,0.00029531,120]
[391117484,1760359510816,-604.11,0.00029531,120]
[391117485,1760359510872,-500.0,0.00029531,120]
[391117486,1760359510928,-605.33,0.00029531,120]
[391117487,1760359510984,-500.0,0.00029531,120]
[391117488,1760359511043,-500.0,0.00029531,120]
[391117489,1760359511103,-467.41,0.00029531,120]
[391117490,1760359511163,-604.11,0.00029531,120]
[391117491,1760359511225,-500.0,0.00029531,120]
[391117492,1760359511288,-604.11,0.00029531,120]
[391117493,1760359511353,-500.0,0.00029531,120]
[391117494,1760359511416,-604.11,0.00029531,120]
[391117495,1760359511476,-500.0,0.00029531,120]
[391117496,1760359511548,-604.11,0.00029531,120]
[391117497,1760359511608,-604.11,0.00029531,120]
[391117498,1760359511667,-500.0,0.00029531,120]
[391117499,1760359511730,-500.0,0.00029531,120]
[391117500,1760359511789,-500.0,0.00029531,120]
[391117501,1760359511849,-604.11,0.00029531,120]
[391117502,1760359511906,-500.0,0.00029531,120]
[391117503,1760359511965,-500.0,0.00029531,120]
[391117504,1760359512023,-500.0,0.00029531,120]
[391117505,1760359512079,-500.0,0.00029531,120]
[391117506,1760359512140,-604.11,0.00029531,120]
[391117507,1760359512198,-623.65,0.00029531,120]
[391117508,1760359512256,-500.0,0.00029531,120]
[391117509,1760359512314,-604.11,0.00029531,120]
[391117510,1760359512371,-500.0,0.00029531,120]
[391117511,1760359512433,-500.0,0.00029531,120]
[391117512,1760359512489,-500.0,0.00029531,120]
[391117513,1760359512548,-604.11,0.00029531,120]
[391117514,1760359512607,-508.44,0.00029531,120]
[391117515,1760359512664,-500.0,0.00029531,120]
[391117516,1760359512721,-500.0,0.00029531,120]
[391117517,1760359512778,-604.11,0.00029531,120]
[391117518,1760359512833,-500.0,0.00029531,120]
[391117519,1760359512886,-500.0,0.00029531,120]
[391117520,1760359512945,-604.11,0.00029531,120]
[391117521,1760359513002,-312.62,0.00029531,120]
[391117522,1760359513059,-500.0,0.00029531,120]
[391117523,1760359513116,-500.0,0.00029531,120]
[391117524,1760359513175,-500.0,0.00029531,120]
[391117525,1760359513237,-604.11,0.00029531,120]
[391117526,1760359513298,-500.0,0.00029531,120]
[391117527,1760359513357,-604.11,0.00029531,120]
[391117528,1760359513422,-500.0,0.00029531,120]
[391117529,1760359513479,-604.11,0.00029531,120]
[391117530,1760359513534,-500.0,0.00029531,120]
[391117531,1760359513591,-604.11,0.00029531,120]
[391117532,1760359513650,-500.0,0.00029531,120]
[391117533,1760359513707,-500.0,0.00029531,120]
[391117534,1760359513763,-604.11,0.00029531,120]
[391117535,1760359513820,-500.0,0.00029531,120]
[391117536,1760359513879,-604.11,0.00029531,120]
[391117537,1760359513936,-500.0,0.00029531,120]
[391117538,1760359513994,-500.0,0.00029531,120]
[391117539,1760359514061,-500.0,0.00029531,120]
[391117540,1760359514126,-604.11,0.00029531,120]
[391117541,1760359514196,-500.0,0.00029531,120]
[391117542,1760359514264,-500.0,0.00029531,120]
[391117543,1760359514336,-500.0,0.00029531,120]
[391117544,1760359514405,-500.0,0.00029531,120]
[391117545,1760359514469,-500.0,0.00029531,120]
[391117546,1760359514531,-500.0,0.00029531,120]
[391117547,1760359514593,-604.11,0.00029531,120]
[391117548,1760359515028,-500.0,0.00029531,120]
[391117549,1760359515093,-239.67,0.00029531,120]
[391117550,1760359515161,-604.32,0.00029531,120]
[391117551,1760359515226,-500.0,0.00029531,120]
[391117552,1760359515290,-500.0,0.00029531,120]
[391117553,1760359515351,-500.0,0.00029531,120]
[391117554,1760359515410,-453.46,0.00029531,120]
[391117555,1760359515470,-400.0,0.00029531,120]
[391117556,1760359515528,-500.0,0.00029531,120]
[391117557,1760359515591,-500.0,0.00029531,120]
[391117558,1760359515654,-462.27414001,0.00029531,120]
[391117559,1760359515715,-500.0,0.00029531,120]
[391117560,1760359515777,-500.0,0.00029531,120]
[391117561,1760359515838,-500.0,0.00029531,120]
[391117562,1760359515899,-500.0,0.00029531,120]
[391117563,1760359515961,-500.0,0.00029531,120]
[391117564,1760359516024,-500.0,0.00029531,120]
[391117565,1760359516088,-454.4,0.00029531,120]
[391117566,1760359516154,-500.0,0.00029531,120]
[391117567,1760359516217,-500.0,0.00029531,120]
[391117568,1760359516281,-176.72,0.00029531,120]
[391117569,1760359516348,-500.0,0.00029531,120]
[391117570,1760359516411,-155.92,0.00029531,120]
[391117571,1760359516487,-500.0,0.00029531,120]
[391117572,1760359516551,-500.0,0.00029531,120]
[391117573,1760359516619,-205.91,0.00029531,120]
[391117574,1760359516680,-500.0,0.00029531,120]
[391117575,1760359516743,-500.0,0.00029531,120]
[391117576,1760359516807,-500.0,0.00029531,120]
[391117577,1760359516869,-500.0,0.00029531,120]
[391117578,1760359516930,-500.0,0.00029531,120]
[391117579,1760359516990,-500.0,0.00029531,120]
[391117580,1760359517056,-398.95,0.00029531,120]
[391117581,1760359517119,-500.0,0.00029531,120]
[391117582,1760359517183,-500.0,0.00029531,120]
[391117583,1760359517245,-500.0,0.00029531,120]
[391117584,1760359517305,-500.0,0.00029531,120]
[391117585,1760359517370,-500.0,0.00029531,120]
[391117586,1760359517431,-644.16,0.00029531,120]
[391117587,1760359517491,-500.0,0.00029531,120]
[391117588,1760359517553,-500.0,0.00029531,120]
[391117589,1760359517615,-500.0,0.00029531,120]
[391117590,1760359517685,-500.0,0.00029531,120]
[391117591,1760359517752,-543.68,0.00029531,120]
[391117592,1760359517811,-429.76980849,0.00029531,120]
[391117593,1760359538586,157.32,7.021e-05,2]
[391117594,1760359538630,157.32,7.434e-05,2]
[391117595,1760359538670,157.32,7.847e-05,2]
[391117596,1760359538731,157.32,8.26e-05,2]
[391117597,1760359538770,157.32,8.673e-05,2]
[391117598,1760359538805,157.32,9.085e-05,2]
[391117599,1760359538858,157.32,9.498e-05,2]
[391117600,1760359538897,157.32,9.911e-05,2]
[391117601,1760359538932,157.32,0.00010324,2]
[391117602,1760359538967,157.32,0.00010737,2]
[391117603,1760359539002,157.32,0.0001115,2]
[391117604,1760359539059,157.32,0.00011563,2]
[391117605,1760359539096,157.32,0.00011976,2]
[391117606,1760359539137,157.32,0.00012389,2]
[391117607,1760359539693,-157.32,0.00012802,2]
[391117608,1760359565848,2000.0,0.00027988,120]
[391117609,1760359566135,2000.0,0.00027988,120]
[391117610,1760359566576,2000.0,0.00027988,120]
[391117611,1760359566864,659.851,0.00027988,120]
[391117612,1760359567979,1000.0,0.00027988,120]
[391117613,1760359568072,1000.0,0.00027988,120]
[391117614,1760359568214,1000.0,0.00027988,120]
[391117615,1760359568411,1000.0,0.00027988,120]
[391117616,1760359568706,1000.0,0.00027988,120]
[391117617,1760359569002,950.325,0.00027988,120]
[391117632,1760359759411,844.89518353,0.00028,120]
[391117642,1760359831631,-583.751137,0.00013149,2]
[391117643,1760359831641,-109.35347056,0.00013215,2]
[391117644,1760359831652,-47.96652944,0.00013215,2]
[391117645,1760359831662,-1093.98696376,0.00013422,2]
[391117647,1760359831671,-51.32507712,0.00013628,2]
[391117648,1760359831709,-105.99492288,0.00013628,2]
[391117649,1760359831727,-222.48930943,0.00013752,2]
[391117650,1760359831737,-300.0,0.00013806,2]
[391117651,1760359831746,-1200.0,0.00013806,2]
[391117652,1760359831755,-300.0,0.00013806,2]
[391117653,1760359831765,-300.0,0.00013806,2]
[391117654,1760359831775,-640.6740956,0.00013807,2]
[391117655,1760359831787,-1859.3259044,0.00013807,2]
[391117656,1760359831796,-2263.43683315,0.00013807,2]
[391117657,1760359831811,-236.56316685,0.00013807,2]
[391117658,1760359831821,-220.1074784,0.00013807,2]
[391117659,1760359831872,-1860.79195652,0.00013807,2]
[391117660,1760359831883,-2582.2,0.00013875,2]
[391117661,1760359831893,-157.32,0.00014041,2]
[391117662,1760359831902,-879.6,0.0001406,2]
[391117663,1760359831912,-150.0,0.00014066,2]
[391117664,1760359831922,-250.0,0.00014152,2]
[391117665,1760359831932,-250.0,0.00014156,7]
[391117666,1760359831941,-2500.0,0.00014537,2]
[391117667,1760359831951,-186.14545386,0.00014537,2]
[391117668,1760359831960,-2000.0,0.00014537,2]
[391117669,1760359831970,-259.51677693,0.00014537,2]
[391117670,1760359831980,-300.0,0.00014537,2]
[391117671,1760359831989,-2087.65562119,0.00014699,2]
[391117672,1760359832002,-865.21085827,0.0001473,2]
[391117673,1760359832011,-150.0,0.00014898,2]
[391117674,1760359832021,-169.35770352,0.00014899,2]
[391117675,1760359832030,-519.766,0.00014899,2]
[391117676,1760359832040,-500.0,0.000149,2]
[391117677,1760359832050,-500.0,0.000149,2]
[391117678,1760359832059,-500.0,0.000149,2]
[391117679,1760359832069,-500.0,0.000149,2]
[391117680,1760359832079,-160.05182826,0.000149,2]
[391117681,1760359832088,-177.71235461,0.000149,2]
[391117682,1760359832097,-192.33248259,0.000149,2]
[391117683,1760359832107,-8294.75381875,0.000149,2]
[391117684,1760359832117,-12877.50134832,0.000149,2]
[391117685,1760359832126,-599.60298508,0.00014964,2]
[391117686,1760359832138,-9211.34798985,0.00014964,2]
[391117688,1760359832148,-151.0,0.00014964,2]
[391117689,1760359832159,-267.46074303,0.00014964,2]
[391117690,1760359832172,-500.0,0.00014973,2]
[391117691,1760359832182,-500.0,0.00014973,2]
[391117692,1760359832191,-500.0,0.00014973,2]
[391117693,1760359832203,-500.0,0.00014973,2]
[391117694,1760359832213,-500.0,0.00014973,2]
[391117695,1760359832223,-500.0,0.00014973,2]
[391117696,1760359832233,-501.59885983,0.00014973,2]
[391117697,1760359832244,-500.0,0.00014973,2]
[391117698,1760359832254,-500.0,0.00014973,2]
[391117699,1760359832263,-500.0,0.00014973,2]
[391117700,1760359832273,-500.0,0.00014973,2]
[391117701,1760359832283,-500.0,0.00014973,2]
[391117702,1760359832292,-160.08065059,0.0001499,2]
[391117703,1760359832302,-180.82812479,0.0001499,2]
[391117704,1760359832312,-530.73867042,0.0001499,2]
[391117705,1760359832322,-321.4,0.00014991,2]
[391117706,1760359832332,-322.6107,0.00014991,2]
[391117707,1760359832341,-500.0,0.00014991,2]
[391117708,1760359832351,-300.0,0.00014991,2]
[391117709,1760359832361,-2000.0,0.00014991,2]
[391117710,1760359832371,-214.77766553,0.00014991,2]
[391117711,1760359832380,-2000.0,0.00014991,2]
[391117712,1760359832394,-2000.0,0.00014991,2]
[391117713,1760359832403,-2000.0,0.00014991,2]
[391117714,1760359832413,-1000.0,0.00014991,2]
[391117715,1760359832422,-1952.85004901,0.00014991,2]
[391117716,1760359832431,-200.0,0.00014991,2]
[391117717,1760359832441,-573.23040754,0.00014991,2]
[391117718,1760359832450,-500.0,0.00014991,2]
[391117719,1760359832459,-250.0,0.00014991,2]
[391117720,1760359832469,-695.39793187,0.00014991,2]
[391117721,1760359832478,-250.0,0.00014991,2]
[391117722,1760359832488,-151.0,0.00014991,2]
[391117723,1760359832498,-151.0,0.00014991,2]
[391117724,1760359832507,-151.0,0.00014991,2]
[391117725,1760359832517,-151.0,0.00014991,2]
[391117726,1760359832527,-151.0,0.00014991,2]
[391117727,1760359832537,-151.0,0.00014991,2]
[391117728,1760359832546,-151.0,0.00014991,2]
[391117729,1760359832556,-151.0,0.00014991,2]
[391117730,1760359832565,-200.0,0.00014991,2]
[391117731,1760359832575,-151.0,0.00014991,2]
[391117732,1760359832585,-181.08010149,0.00014991,2]
[391117733,1760359832604,-160.0,0.00014991,2]
[391117734,1760359832615,-238.20429642,0.00014991,2]
[391117735,1760359832624,-151.0,0.00014991,2]
[391117736,1760359832635,-151.0,0.00014991,2]
[391117737,1760359832645,-178.59913371,0.00014991,2]
[391117738,1760359832655,-200.0,0.00014991,2]
[391117739,1760359832664,-151.0,0.00014991,2]
[391117740,1760359832674,-151.0,0.00014991,2]
[391117741,1760359832683,-151.0,0.00014991,2]
[391117742,1760359832692,-2000.0,0.00014991,2]
[391117743,1760359832702,-151.0,0.00014991,2]
[391117744,1760359832711,-2000.0,0.00014991,2]
[391117745,1760359832721,-151.0,0.00014991,2]
[391117746,1760359832730,-2000.0,0.00014991,2]
[391117747,1760359832740,-151.0,0.00014991,2]
[391117748,1760359832750,-2000.0,0.00014991,2]
[391117749,1760359832760,-151.0,0.00014991,2]
[391117750,1760359832769,-1000.0,0.00014991,2]
[391117751,1760359832779,-151.0,0.00014991,2]
[391117752,1760359832789,-500.0,0.00014991,2]
[391117753,1760359832799,-151.0,0.00014991,2]
[391117754,1760359832808,-2000.0,0.00014991,2]
[391117755,1760359832818,-309.12,0.00014991,2]
[391117756,1760359832829,-151.0,0.00014991,2]
[391117757,1760359832841,-2000.0,0.00014991,2]
[391117758,1760359832858,-151.0,0.00014991,2]
[391117759,1760359832868,-2000.0,0.00014991,2]
[391117761,1760359832878,-151.0,0.00014991,2]
[391117762,1760359832889,-2000.0,0.00014991,2]
[391117763,1760359832899,-151.0,0.00014991,2]
[391117764,1760359832909,-284.50069377,0.00014991,2]
[391117765,1760359832918,-1171.65973596,0.00014991,2]
[391117766,1760359832927,-500.0,0.00014991,2]
[391117767,1760359832937,-622.89091072,0.00014991,2]
[391117768,1760359832946,-151.0,0.00014991,2]
[391117769,1760359832956,-1778.0,0.00015,2]
[391117770,1760359832966,-51786.95962165,0.00015,2]
[391117771,1760359832988,-1553.49823974,0.00015,2]
[391117779,1760359837652,-1333.55396345,0.00015,2]
[391117780,1760359837797,-20007.77407819,0.00015,2]
[391117781,1760359837809,-28791.83119675,0.00015,2]
[391117782,1760359837858,-1116.27115376,0.00015,2]
[391117792,1760359839644,-164.35466588,0.000149,2]
[391117793,1760359839654,-47770.2592728,0.00015,2]
[391117794,1760359839844,-170.36735406,0.00015,2]
[391117795,1760359839855,-1537.17355477,0.00015,2]
[391117796,1760359839866,-447.45369122,0.00015,2]
[391117800,1760359842832,-110978.83668457,0.00015,2]
[391117801,1760359842842,-743518.06833143,0.00015,2]
[391117802,1760359843053,-302.60190344,0.00015,2]
[391117803,1760359843139,-903114.83122728,0.00015,2]
[391117810,1760359846375,-11475.0,0.00015,2]
[391117811,1760359846411,-369.95647677,0.00015,2]
[391117816,1760360157829,1444.0,0.00028,120]
[391117824,1760360505848,155.00055898,0.00028767,120]
[391117833,1760360975031,233.89,0.00028767,120]